bitfinex-derivatives/quotes_BTCF0:USTF0_20250602
["timestamp","ask_amount","ask_price","bid_price","bid_amount"]
[1748872208917,0.54119664,103990.0,103980.0,1.2493574]
[1748872209618,0.54119664,103990.0,103980.0,0.8890374]
[1748872209815,0.54119664,103990.0,103980.0,0.8041374]
[1748872210015,0.782339,103990.0,103980.0,0.8041374]
[1748872210315,0.782339,103990.0,103980.0,0.3179374]
[1748872210513,1.03136224,103990.0,103980.0,0.8040175]
[1748872210820,1.03136224,103990.0,103970.0,0.5926527]
[1748872210821,0.1922575,103980.0,103970.0,0.5926527]
[1748872211115,0.7698575,103980.0,103970.0,0.889916]
[1748872211319,0.7698575,103980.0,103970.0,0.317756]
[1748872211320,1.01888074,103980.0,103970.0,0.317756]
[1748872211619,0.7698575,103980.0,103970.0,0.804556]
[1748872211818,0.2168,103980.0,103970.0,0.893456]
[1748872212120,0.4090575,103980.0,103970.0,0.893456]
[1748872212319,0.4100575,103980.0,103970.0,1.254256]
[1748872213105,0.4110575,103980.0,103970.0,1.254256]
[1748872213505,0.4110575,103980.0,103970.0,0.893456]
[1748872213711,0.6110575,103980.0,103970.0,0.893456]
[1748872215113,0.6110575,103980.0,103970.0,0.893496]
[1748872215512,1.31705674,103980.0,103970.0,0.0002]
[1748872215822,1.31705674,103980.0,103960.0,0.4568963]
[1748872215823,0.192276,103970.0,103960.0,0.4568963]
[1748872216018,0.403176,103970.0,103960.0,0.9441763]
[1748872216218,0.403176,103970.0,103960.0,0.4088234]
[1748872216516,0.65219924,103970.0,103960.0,0.1946034]
[1748872216824,1.01399924,103970.0,103960.0,0.8094906]
[1748872217012,1.01399924,103970.0,103960.0,0.3201306]
[1748872217212,1.01499924,103970.0,103960.0,0.8094106]
[1748872217519,0.765976,103970.0,103960.0,0.8094106]
[1748872217914,0.765976,103970.0,103960.0,0.8096106]
[1748872218420,0.765976,103970.0,103960.0,0.8557106]
[1748872218925,1.01499924,103970.0,103960.0,0.8557106]
[1748872219218,1.01499924,103970.0,103960.0,0.00656574]
[1748872219729,1.11118724,103970.0,103960.0,0.00636574]
[1748872219910,1.01499924,103970.0,103960.0,0.19886024]
[1748872220117,1.06499924,103970.0,103960.0,0.00636574]
[1748872220312,1.36118724,103970.0,103960.0,0.49844574]
[1748872220511,1.11118724,103970.0,103960.0,0.49844574]
[1748872220722,1.11018724,103970.0,103960.0,0.49844574]
[1748872220912,1.11118724,103970.0,103960.0,0.49876574]
[1748872221116,1.11118724,103970.0,103960.0,0.49856574]
[1748872221314,1.11118724,103970.0,103960.0,0.49876574]
[1748872221516,1.11118724,103970.0,103960.0,0.69106024]
[1748872221711,1.01499924,103970.0,103960.0,0.69106024]
[1748872223325,1.01499924,103970.0,103960.0,0.73596024]
[1748872224015,1.01499924,103970.0,103960.0,0.78266024]
[1748872224413,1.21499924,103970.0,103960.0,0.82486024]
[1748872225327,0.965976,103970.0,103960.0,0.82518024]
[1748872225528,1.21499924,103970.0,103960.0,0.82518024]
[1748872226030,1.21499924,103970.0,103960.0,0.49860574]
[1748872226031,1.21164308,103970.0,103960.0,0.49860574]
[1748872226228,1.21164308,103970.0,103960.0,0.69090014]
[1748872226420,1.21164308,103970.0,103960.0,0.69110014]
[1748872226421,1.46066632,103970.0,103960.0,0.69110014]
[1748872227332,1.46066632,103970.0,103960.0,0.73360014]
[1748872227732,1.46066632,103970.0,103960.0,0.04906574]
[1748872227914,1.21164308,103970.0,103960.0,0.69242014]
[1748872228121,1.46066632,103970.0,103960.0,0.69294014]
[1748872228519,1.46066632,103970.0,103960.0,0.73954014]
[1748872228725,1.11545508,103970.0,103960.0,0.73954014]
[1748872228929,1.13493001,103970.0,103960.0,0.78524014]
[1748872229327,1.38395325,103970.0,103960.0,0.78524014]
[1748872231026,1.13493001,103970.0,103960.0,0.59294574]
[1748872231224,1.38406326,103970.0,103960.0,0.78520014]
[1748872231822,1.13504002,103970.0,103960.0,0.78520014]
[1748872232130,1.38406326,103970.0,103960.0,0.59290574]
[1748872232525,1.38306326,103970.0,103960.0,0.09886574]
[1748872232828,1.38306326,103970.0,103960.0,0.59286574]
[1748872232829,1.23447417,103970.0,103960.0,0.59286574]
[1748872233032,1.23447417,103970.0,103960.0,0.59266574]
[1748872233226,1.23447417,103970.0,103960.0,0.59286574]
[1748872233427,1.32966217,103970.0,103960.0,0.00656574]
[1748872233732,1.31118724,103970.0,103960.0,0.00636574]
[1748872233925,1.31118724,103970.0,103960.0,0.00656574]
[1748872234126,1.31118724,103970.0,103960.0,0.00636574]
[1748872234320,1.31118724,103970.0,103960.0,0.00656574]
[1748872234931,1.062164,103970.0,103960.0,0.00656574]
[1748872235130,1.31118724,103970.0,103960.0,0.00656574]
[1748872235426,1.5209062,103970.0,103960.0,0.00656574]
[1748872236320,1.3209062,103970.0,103960.0,0.00656574]
[1748872236722,1.6209062,103970.0,103960.0,0.00656574]
[1748872236929,1.6209062,103970.0,103940.0,7e-08]
[1748872236930,0.1923129,103950.0,103940.0,7e-08]
[1748872237130,0.1779569,103910.0,103890.0,0.89914531]
[1748872237322,0.96602255,103910.0,103900.0,0.2782055]
[1748872237522,0.44240598,103910.0,103900.0,0.7741255]
[1748872237716,0.44240598,103910.0,103900.0,0.6392055]
[1748872237927,0.44240598,103910.0,103900.0,1.1351655]
[1748872238333,0.40983061,103910.0,103900.0,0.0002]
[1748872238536,0.1924055,103900.0,103890.0,1.21352723]
[1748872238721,0.3224055,103900.0,103890.0,1.12772723]
[1748872238922,0.3224055,103900.0,103890.0,1.13116723]
[1748872239227,0.3224055,103900.0,103890.0,1.13117913]
[1748872239726,0.13,103900.0,103890.0,1.38020237]
[1748872239921,0.13,103900.0,103890.0,1.13117913]
[1748872240123,0.131,103900.0,103890.0,0.63193913]
[1748872240328,0.00014371,103910.0,103900.0,0.1924055]
[1748872240529,0.12014371,103910.0,103900.0,0.81598491]
[1748872240727,0.12014371,103910.0,103900.0,0.56696167]
[1748872240929,0.12014371,103910.0,103900.0,1.43286874]
[1748872241232,0.12014371,103910.0,103900.0,1.4465147]
[1748872241432,0.12014371,103910.0,103900.0,1.43286874]
[1748872241830,0.37116695,103910.0,103890.0,0.39461513]
[1748872242028,0.86493151,103910.0,103900.0,0.0002]
[1748872242219,0.45603091,103910.0,103900.0,0.1926055]
[1748872242425,0.41073091,103910.0,103900.0,0.1926055]
[1748872242826,0.12214371,103910.0,103900.0,0.93286874]
[1748872243335,0.12214371,103910.0,103900.0,1.43294874]
[1748872243527,0.12214371,103910.0,103900.0,1.2300255]
[1748872243725,0.12214371,103910.0,103900.0,1.0995855]
[1748872243930,0.12214371,103910.0,103900.0,0.7299455]
[1748872244128,0.12214371,103910.0,103900.0,1.2296655]
[1748872244341,0.12214371,103910.0,103900.0,1.2304255]
[1748872244637,0.12214371,103910.0,103900.0,1.47944874]
[1748872244826,0.12214371,103910.0,103900.0,1.2304255]
[1748872245129,0.12214371,103910.0,103900.0,1.47944874]
[1748872246324,0.12214371,103910.0,103900.0,1.47880874]
[1748872247136,0.12214371,103910.0,103900.0,1.2297855]
[1748872247324,0.32214371,103910.0,103900.0,1.2297855]
[1748872248933,0.32214371,103910.0,103900.0,1.51549005]
[1748872249131,0.32214371,103910.0,103900.0,1.52912583]
[1748872249529,0.32214371,103910.0,103900.0,1.26646681]
[1748872249832,0.67214371,103910.0,103900.0,1.27071635]
[1748872250534,0.67214371,103910.0,103900.0,1.31281635]
[1748872251039,0.67214371,103910.0,103900.0,0.81297635]
[1748872251240,0.86453061,103910.0,103900.0,1.31437625]
[1748872251428,0.86453061,103910.0,103900.0,1.27769494]
[1748872251630,0.86453061,103910.0,103900.0,1.32077494]
[1748872251932,0.86453061,103910.0,103900.0,1.32097494]
[1748872252132,0.86453061,103910.0,103900.0,0.95997494]
[1748872252337,0.86453061,103910.0,103900.0,1.32097494]
[1748872252639,0.86453061,103910.0,103900.0,0.96017494]
[1748872252936,0.86453061,103910.0,103900.0,1.32097494]
[1748872254233,0.67214371,103910.0,103900.0,1.32097494]
[1748872257140,0.67214371,103910.0,103900.0,1.32081494]
[1748872257645,0.67214371,103910.0,103900.0,1.35749625]
[1748872258941,0.67214371,103910.0,103900.0,1.60651949]
[1748872259137,0.67214371,103910.0,103900.0,1.56983818]
[1748872259445,0.67214371,103910.0,103900.0,1.61873326]
[1748872259741,0.67214371,103910.0,103900.0,1.25793326]
[1748872260042,0.67214371,103910.0,103900.0,2.07577326]
[1748872260244,0.67214371,103910.0,103900.0,2.27687818]
[1748872260440,0.67214371,103910.0,103900.0,1.77575818]
[1748872260743,0.67214371,103910.0,103900.0,3.52667818]
[1748872261152,0.67214371,103910.0,103900.0,1.14629494]
[1748872261444,0.67214371,103910.0,103900.0,1.72307556]
[1748872261650,0.67214371,103910.0,103900.0,1.9720988]
[1748872261651,0.79178088,103910.0,103900.0,1.9720988]
[1748872262545,0.59178088,103910.0,103900.0,1.72307556]
[1748872262845,0.79178088,103910.0,103900.0,1.72307556]
[1748872263632,0.79178088,103910.0,103900.0,1.98431495]
[1748872264437,0.79178088,103910.0,103900.0,2.34279703]
[1748872264640,0.79178088,103910.0,103900.0,2.28167818]
[1748872264841,0.79178088,103910.0,103900.0,2.29167818]
[1748872265038,0.79178088,103910.0,103900.0,2.33746742]
[1748872265245,0.79178088,103910.0,103900.0,2.29167818]
[1748872265545,0.01215,103920.0,103900.0,2.29167818]
[1748872265546,0.03366,103920.0,103910.0,0.1923869]
[1748872265846,0.002,103950.0,103940.0,0.1923314]
[1748872266145,0.472,103950.0,103940.0,1.36981389]
[1748872266753,0.6643129,103950.0,103940.0,0.54164249]
[1748872266937,0.6643129,103950.0,103940.0,0.52939084]
[1748872266938,0.91333614,103950.0,103940.0,0.52939084]
[1748872267141,1.04963614,103950.0,103940.0,1.31508224]
[1748872267445,1.25163614,103950.0,103940.0,1.2783914]
[1748872267753,1.25163614,103950.0,103940.0,1.04246]
[1748872268252,1.25163614,103950.0,103940.0,1.04226]
[1748872268551,1.25463614,103950.0,103940.0,1.04246]
[1748872268851,1.25463614,103950.0,103940.0,1.2347914]
[1748872269046,1.0056129,103950.0,103940.0,1.2777914]
[1748872269246,1.25463614,103950.0,103940.0,1.2777914]
[1748872269756,1.25463614,103950.0,103940.0,0.9169914]
[1748872270551,1.25463614,103950.0,103940.0,1.2777914]
[1748872270848,1.0056129,103950.0,103940.0,1.2777914]
[1748872271052,1.06232324,103950.0,103940.0,1.2777914]
[1748872271352,1.25463614,103950.0,103940.0,0.4499]
[1748872271550,1.74543614,103950.0,103940.0,0.635]
[1748872271851,1.74543614,103950.0,103940.0,0.63488]
[1748872272154,1.74543614,103950.0,103940.0,0.83699915]
[1748872272342,1.74543614,103950.0,103940.0,0.33803915]
[1748872272539,1.38463614,103950.0,103940.0,0.83747915]
[1748872273642,1.25463614,103950.0,103940.0,0.88687915]
[1748872273851,1.25463614,103950.0,103940.0,0.74344775]
[1748872274052,1.25463614,103950.0,103940.0,0.93577915]
[1748872274847,1.35463614,103950.0,103940.0,0.83747915]
[1748872275053,1.25463614,103950.0,103940.0,0.83747915]
[1748872275357,1.25463614,103950.0,103940.0,0.83647915]
[1748872275559,1.06232324,103950.0,103940.0,1.19727915]
[1748872275768,1.06232324,103950.0,103940.0,1.29557915]
[1748872275969,0.8133,103950.0,103940.0,1.29557915]
[1748872276273,0.7684,103950.0,103940.0,1.34397915]
[1748872276464,0.97172324,103950.0,103940.0,1.34397915]
[1748872277367,1.12147363,103950.0,103940.0,1.34397915]
[1748872277568,0.92147363,103950.0,103940.0,1.34397915]
[1748872277769,1.12147363,103950.0,103940.0,1.34397915]
[1748872278867,0.82675039,103950.0,103940.0,1.34397915]
[1748872279070,0.82432708,103950.0,103940.0,1.34397915]
[1748872279264,0.82432708,103950.0,103940.0,1.38066999]
[1748872279575,0.65993669,103950.0,103940.0,1.38066999]
[1748872279777,0.77972638,103950.0,103940.0,1.38066999]
[1748872279980,0.75335638,103950.0,103940.0,1.38066999]
[1748872280176,0.5832868,103950.0,103940.0,1.98014677]
[1748872280476,0.5832868,103950.0,103940.0,1.99239842]
[1748872280477,0.72478969,103950.0,103940.0,1.99239842]
[1748872280677,0.70566969,103950.0,103940.0,1.99239842]
[1748872280863,0.6161741,103950.0,103940.0,1.99239842]
[1748872281062,0.5155741,103950.0,103940.0,1.99239842]
[1748872281270,0.4945741,103950.0,103940.0,1.74337518]
[1748872281577,0.31277355,103950.0,103940.0,1.74337518]
[1748872281779,0.39077355,103950.0,103940.0,1.74337518]
[1748872281972,0.34265805,103950.0,103940.0,1.69443269]
[1748872282274,0.31519805,103950.0,103940.0,1.74337518]
[1748872282468,0.26708255,103950.0,103940.0,1.99239842]
[1748872282674,0.27018255,103950.0,103940.0,1.99239842]
[1748872282874,0.27018255,103950.0,103940.0,1.94345593]
[1748872283069,0.27018255,103950.0,103940.0,1.06047269]
[1748872283268,0.27018255,103950.0,103940.0,1.43955269]
[1748872283464,0.17395155,103950.0,103940.0,0.81047269]
[1748872283684,0.51,103950.0,103940.0,1.43955269]
[1748872283877,0.51,103950.0,103940.0,1.47614786]
[1748872284081,0.51,103950.0,103940.0,0.94311269]
[1748872284284,0.511,103950.0,103940.0,1.74323842]
[1748872284584,0.512,103950.0,103940.0,1.74823842]
[1748872285076,0.512,103950.0,103940.0,1.49921518]
[1748872285269,0.512,103950.0,103940.0,1.74823842]
[1748872285870,0.512,103950.0,103940.0,1.49921518]
[1748872286386,0.512,103950.0,103940.0,1.35306869]
[1748872286679,0.512,103950.0,103940.0,1.38945866]
[1748872286871,0.512,103950.0,103940.0,1.40201118]
[1748872287673,0.712,103950.0,103940.0,1.40201118]
[1748872288779,0.332,103950.0,103940.0,1.40201118]
[1748872288979,0.332,103950.0,103940.0,1.40081118]
[1748872290084,0.332,103950.0,103940.0,0.90701118]
[1748872290283,0.4316,103950.0,103940.0,1.40025118]
[1748872290480,0.4316,103950.0,103940.0,1.35130869]
[1748872290680,0.4316,103950.0,103940.0,0.06203874]
[1748872290681,1.10373614,103950.0,103940.0,0.06203874]
[1748872290981,0.1923314,103940.0,103930.0,0.00226052]
[1748872291275,1.03175464,103940.0,103930.0,0.00226052]
[1748872291476,1.03175464,103940.0,103930.0,0.49602052]
[1748872291676,0.4219314,103940.0,103930.0,0.49622052]
[1748872291881,1.03175464,103940.0,103930.0,0.00226052]
[1748872292070,1.37796664,103940.0,103930.0,0.00846052]
[1748872292271,1.37796664,103940.0,103930.0,0.50214052]
[1748872292272,1.37896664,103940.0,103930.0,0.50214052]
[1748872292678,1.37896664,103940.0,103930.0,0.42474052]
[1748872292878,0.192387,103910.0,103900.0,1.64668292]
[1748872293082,0.6493736,103920.0,103910.0,0.1328]
[1748872293277,1.03839684,103920.0,103910.0,0.325187]
[1748872293786,1.03839684,103920.0,103910.0,0.1328]
[1748872293984,0.99030074,103920.0,103910.0,0.192387]
[1748872294285,0.99030074,103920.0,103910.0,1.15589383]
[1748872294286,0.09574419,103920.0,103910.0,1.15589383]
[1748872294491,0.09574419,103920.0,103910.0,1.30149383]
[1748872294676,0.09674419,103920.0,103910.0,1.30149383]
[1748872294982,0.08182419,103920.0,103910.0,1.56494707]
[1748872295185,0.183,103940.0,103930.0,0.19235]
[1748872295186,0.14343746,103940.0,103930.0,0.19235]
[1748872295373,0.13,103940.0,103930.0,1.6851235]
[1748872295578,0.13,103940.0,103930.0,1.8307235]
[1748872295778,0.13,103940.0,103930.0,1.86734196]
[1748872296984,0.131,103940.0,103930.0,1.86734196]
[1748872297183,0.131,103940.0,103930.0,1.94392042]
[1748872297378,0.138,103940.0,103930.0,2.1563252]
[1748872297578,0.138,103940.0,103930.0,2.19294076]
[1748872297888,0.138,103940.0,103930.0,1.31699752]
[1748872298079,0.138,103940.0,103930.0,1.94311752]
[1748872299484,0.138,103940.0,103930.0,2.19214076]
[1748872300687,0.138,103940.0,103930.0,1.94351752]
[1748872301284,0.138,103940.0,103930.0,1.24061906]
[1748872301486,0.138,103940.0,103930.0,1.86677906]
[1748872301687,0.138,103940.0,103930.0,1.86657906]
[1748872301886,0.138,103940.0,103930.0,1.86677906]
[1748872302087,0.338,103940.0,103930.0,1.86677906]
[1748872302397,0.58702324,103940.0,103930.0,1.6365177]
[1748872302591,0.58702324,103940.0,103930.0,0.3732734]
[1748872302592,1.14015464,103940.0,103930.0,0.3732734]
[1748872302787,0.94782324,103940.0,103930.0,0.3253899]
[1748872303089,0.58702324,103940.0,103930.0,1.1793499]
[1748872303289,0.58702324,103940.0,103930.0,0.8187499]
[1748872303690,0.58702324,103940.0,103930.0,1.2297499]
[1748872304592,0.338,103940.0,103930.0,1.2297499]
[1748872304789,0.338,103940.0,103930.0,1.2809499]
[1748872305985,0.45768001,103940.0,103930.0,1.2809499]
[1748872306196,0.45768001,103940.0,103930.0,1.52997314]
[1748872306387,0.45768001,103940.0,103930.0,0.9403887]
[1748872306697,0.45768001,103940.0,103930.0,1.5661887]
[1748872307087,0.45768001,103940.0,103930.0,1.31716546]
[1748872307393,0.338,103940.0,103930.0,1.31716546]
[1748872307892,0.338,103940.0,103930.0,1.41337745]
[1748872308291,0.338,103940.0,103930.0,0.78757745]
[1748872308595,0.338,103940.0,103930.0,1.41389745]
[1748872308997,0.32299,103940.0,103930.0,1.73902824]
[1748872309581,0.32299,103940.0,103930.0,1.39339301]
[1748872309787,0.57201324,103940.0,103930.0,0.90456255]
[1748872310092,0.57201324,103940.0,103930.0,1.39760255]
[1748872310288,0.57201324,103940.0,103930.0,1.36098699]
[1748872310484,0.61961324,103940.0,103930.0,1.36098699]
[1748872310689,0.61961324,103940.0,103930.0,1.36078699]
[1748872310889,0.37059,103940.0,103930.0,1.53390268]
[1748872311096,0.37059,103940.0,103930.0,1.28487944]
[1748872311590,0.42089,103940.0,103930.0,1.28487944]
[1748872312097,0.22089,103940.0,103930.0,1.28487944]
[1748872312598,0.37329,103940.0,103930.0,1.53390268]
[1748872312781,0.37329,103940.0,103930.0,1.57051824]
[1748872312982,0.37329,103940.0,103930.0,1.02052254]
[1748872313299,0.37329,103940.0,103930.0,1.64424254]
[1748872313594,0.37329,103940.0,103930.0,1.3952193]
[1748872314291,0.37329,103940.0,103930.0,0.9022593]
[1748872314492,0.37329,103940.0,103930.0,1.3947393]
[1748872314893,0.42059,103940.0,103930.0,1.3947393]
[1748872315087,0.37329,103940.0,103930.0,1.3947393]
[1748872315492,0.32299,103940.0,103930.0,1.3947393]
[1748872315985,0.32299,103940.0,103930.0,1.64376254]
[1748872316585,0.32299,103940.0,103930.0,1.64381323]
[1748872317593,0.32299,103940.0,103930.0,1.60714698]
[1748872318186,0.32299,103940.0,103930.0,1.3947982]
[1748872318391,0.32299,103940.0,103930.0,0.86564374]
[1748872318595,0.32299,103940.0,103930.0,1.35676374]
[1748872319099,0.32299,103940.0,103930.0,1.60578698]
[1748872320188,0.32299,103940.0,103930.0,1.35676374]
[1748872320490,0.32299,103940.0,103930.0,0.86564374]
[1748872320681,0.44281685,103940.0,103930.0,0.902144]
[1748872320888,0.53621685,103940.0,103930.0,1.393304]
[1748872321091,0.53621685,103940.0,103930.0,1.393224]
[1748872323495,0.41639,103940.0,103930.0,1.35652374]
[1748872323698,0.21639,103940.0,103930.0,1.35652374]
[1748872323889,0.36979,103940.0,103930.0,1.40546623]
[1748872324692,0.36979,103940.0,103930.0,1.65448947]
[1748872325189,0.36979,103940.0,103930.0,1.64231271]
[1748872325388,0.36979,103940.0,103930.0,1.39328947]
[1748872325594,0.42139,103940.0,103930.0,1.39328947]
[1748872325798,0.42139,103940.0,103930.0,0.90240947]
[1748872326100,0.42139,103940.0,103930.0,1.39256947]
[1748872326393,0.42139,103940.0,103930.0,1.39276947]
[1748872326798,0.86274454,103940.0,103930.0,0.81444364]
[1748872327102,0.86274454,103940.0,103930.0,1.27951708]
[1748872327103,0.91274454,103940.0,103930.0,1.27951708]
[1748872327397,0.91274454,103940.0,103930.0,0.86879708]
[1748872327595,0.91274454,103940.0,103930.0,0.86859708]
[1748872327906,1.12299192,103940.0,103930.0,1.22939708]
[1748872328197,1.12299192,103940.0,103930.0,1.22959708]
[1748872328399,0.93066062,103940.0,103930.0,1.19282934]
[1748872328583,0.93066062,103940.0,103930.0,0.57202934]
[1748872328789,1.76880192,103940.0,103930.0,0.01887954]
[1748872328988,0.1923498,103930.0,103920.0,0.68251201]
[1748872329197,0.98197304,103930.0,103920.0,0.49014371]
[1748872329391,0.98197304,103930.0,103920.0,0.00014371]
[1748872329590,0.98197304,103930.0,103920.0,0.68283201]
[1748872329790,0.98197304,103930.0,103920.0,0.62126371]
[1748872329994,0.98197304,103930.0,103920.0,0.81363201]
[1748872330192,1.06085005,103930.0,103920.0,0.13090371]
[1748872330393,1.40707405,103930.0,103920.0,0.13090371]
[1748872330795,1.33119704,103930.0,103920.0,0.62118371]
[1748872330998,1.33119704,103930.0,103920.0,0.00034371]
[1748872330999,1.43119704,103930.0,103920.0,0.00034371]
[1748872331195,1.43219704,103930.0,103920.0,0.00034371]
[1748872331497,0.1923683,103920.0,103910.0,0.1923838]
[1748872331701,0.1923683,103920.0,103900.0,0.00211742]
[1748872331702,0.1923868,103910.0,103900.0,0.00211742]
[1748872331914,0.97441004,103910.0,103900.0,0.49283742]
[1748872332107,1.32065004,103910.0,103900.0,0.19452272]
[1748872332294,0.1722,103910.0,103900.0,0.82606068]
[1748872332495,0.1722,103910.0,103900.0,1.18666068]
[1748872332691,0.1722,103910.0,103900.0,1.28726068]
[1748872333006,0.1732,103910.0,103900.0,1.28750068]
[1748872333800,0.1732,103910.0,103900.0,0.43558068]
[1748872333801,0.61461004,103910.0,103900.0,0.43558068]
[1748872334001,0.61761004,103910.0,103900.0,0.87484068]
[1748872334203,0.61761004,103910.0,103900.0,0.87464068]
[1748872334394,0.61761004,103910.0,103900.0,0.88425068]
[1748872334597,0.61761004,103910.0,103900.0,0.39349068]
[1748872334798,0.66561004,103910.0,103900.0,0.83507068]
[1748872334992,0.66561004,103910.0,103900.0,0.34439068]
[1748872335190,0.66561004,103910.0,103900.0,0.83519068]
[1748872335397,0.66561004,103910.0,103900.0,0.83539068]
[1748872335803,0.2242,103910.0,103900.0,0.83539068]
[1748872336004,0.4165868,103910.0,103900.0,0.88455068]
[1748872336598,0.2242,103910.0,103900.0,0.39339068]
[1748872336799,0.4165868,103910.0,103900.0,0.93387068]
[1748872337100,0.2242,103910.0,103900.0,1.29467068]
[1748872337294,0.124,103910.0,103900.0,1.54369392]
[1748872337497,0.20915251,103930.0,103920.0,0.1923683]
[1748872337692,0.159,103930.0,103920.0,1.1747683]
[1748872337897,0.159,103930.0,103920.0,1.2738683]
[1748872338200,0.60037304,103930.0,103920.0,0.0991]
[1748872338404,0.1923683,103920.0,103910.0,1.3802868]
[1748872338609,0.67369154,103920.0,103910.0,1.71490371]
[1748872338902,0.92449154,103920.0,103910.0,1.90749051]
[1748872339213,0.92449154,103920.0,103910.0,1.90729051]
[1748872339214,0.6754683,103920.0,103910.0,1.90729051]
[1748872339415,0.92449154,103920.0,103910.0,1.90749051]
[1748872339702,1.38252354,103920.0,103910.0,0.13114371]
[1748872340100,1.38252354,103920.0,103910.0,0.62687325]
[1748872340301,1.38652354,103920.0,103910.0,0.62707325]
[1748872340700,1.38652354,103920.0,103910.0,0.13539325]
[1748872340900,1.38652354,103920.0,103910.0,0.62755325]
[1748872341095,1.38652354,103920.0,103910.0,0.62735325]
[1748872341404,1.38652354,103920.0,103910.0,0.62755325]
[1748872342308,1.1375003,103920.0,103910.0,0.81994015]
[1748872342505,1.38652354,103920.0,103910.0,0.81994015]
[1748872342815,1.38652354,103920.0,103910.0,0.32778015]
[1748872343013,1.38652354,103920.0,103910.0,0.82026015]
[1748872343713,1.53601243,103920.0,103910.0,0.82026015]
[1748872344416,0.99838889,103920.0,103910.0,0.82026015]
[1748872344711,0.48448889,103920.0,103910.0,1.16618339]
[1748872344898,0.53303247,103920.0,103910.0,1.57538339]
[1748872345103,0.263969,103920.0,103910.0,1.57538339]
[1748872345502,0.263969,103920.0,103910.0,1.61215113]
[1748872345503,0.2338318,103920.0,103910.0,1.61215113]
[1748872345703,0.21628507,103920.0,103910.0,1.61215113]
[1748872345903,0.21628507,103920.0,103910.0,1.92161539]
[1748872345904,0.06822507,103920.0,103910.0,1.92161539]
[1748872346205,0.32971829,103940.0,103930.0,0.1923498]
[1748872346206,0.11791336,103940.0,103930.0,0.1923498]
[1748872346409,0.11791336,103940.0,103930.0,2.91335706]
[1748872346410,0.14791336,103940.0,103930.0,2.91335706]
[1748872347002,0.14791336,103940.0,103930.0,2.66433382]
[1748872347203,0.14791336,103940.0,103930.0,2.91335706]
[1748872347617,0.14791336,103940.0,103930.0,3.00956905]
[1748872347618,0.03,103940.0,103930.0,3.00956905]
[1748872347916,0.44998149,103960.0,103950.0,0.1923128]
[1748872347917,0.3406252,103960.0,103950.0,0.1923128]
[1748872348106,0.2606252,103960.0,103950.0,1.42333604]
[1748872348506,0.2606252,103960.0,103950.0,1.43273604]
[1748872348706,0.12,103960.0,103950.0,1.43273604]
[1748872349207,0.123,103960.0,103950.0,1.04351604]
[1748872349408,0.123,103960.0,103950.0,0.65478]
[1748872349409,0.3192943,103960.0,103950.0,0.65478]
[1748872349598,0.66661754,103960.0,103950.0,1.14594]
[1748872350303,0.66661754,103960.0,103950.0,0.65498]
[1748872350608,0.66661754,103960.0,103950.0,0.14048]
[1748872350609,1.22741754,103960.0,103950.0,0.14048]
[1748872350810,1.22741754,103960.0,103950.0,0.63204]
[1748872351111,1.22741754,103960.0,103950.0,0.14048]
[1748872351317,1.22741754,103960.0,103950.0,0.63216]
[1748872351611,1.92263678,103960.0,103950.0,0.0104]
[1748872351808,1.78289799,103960.0,103950.0,0.0106]
[1748872352114,1.78289799,103960.0,103950.0,0.0104]
[1748872352315,2.03192123,103960.0,103950.0,0.0106]
[1748872352511,1.78289799,103960.0,103950.0,0.0106]
[1748872352715,1.57361354,103960.0,103950.0,0.0106]
[1748872353606,1.92263678,103960.0,103950.0,0.0106]
[1748872354210,0.54133604,103950.0,103940.0,0.00014371]
[1748872354509,1.16683604,103950.0,103940.0,0.00014371]
[1748872354713,1.51304004,103950.0,103940.0,0.00034371]
[1748872355114,1.2640168,103950.0,103940.0,0.00034371]
[1748872355311,0.8178128,103950.0,103940.0,0.19267501]
[1748872355515,0.8178128,103950.0,103940.0,0.68467501]
[1748872355516,1.07083604,103950.0,103940.0,0.68467501]
[1748872355812,1.07083604,103950.0,103940.0,0.04884371]
[1748872356008,1.41704004,103950.0,103940.0,0.00034371]
[1748872356315,1.41704004,103950.0,103930.0,0.19446661]
[1748872356316,0.1923313,103940.0,103930.0,0.19446661]
[1748872356514,0.98315454,103940.0,103930.0,0.19446661]
[1748872356916,0.98315454,103940.0,103930.0,0.19466661]
[1748872357116,0.62235454,103940.0,103930.0,0.24740661]
[1748872357417,0.62235454,103940.0,103930.0,0.29680661]
[1748872357628,0.98315454,103940.0,103930.0,0.29680661]
[1748872357811,0.98415454,103940.0,103930.0,0.29780661]
[1748872358009,0.7351313,103940.0,103930.0,0.42784661]
[1748872358211,0.131,103940.0,103930.0,0.84044661]
[1748872358410,0.3233313,103940.0,103930.0,0.84044661]
[1748872358606,0.134,103940.0,103930.0,0.84044661]
[1748872359918,0.134,103940.0,103930.0,1.33344661]
[1748872360417,0.134,103940.0,103930.0,1.58246985]
[1748872360623,0.134,103940.0,103930.0,1.33344661]
[1748872361022,0.134,103940.0,103930.0,1.33324661]
[1748872361320,0.134,103940.0,103930.0,1.33344661]
[1748872362628,0.134,103940.0,103930.0,1.58246985]
[1748872363325,0.09595,103940.0,103930.0,1.58246985]
[1748872363511,0.34902074,103960.0,103950.0,0.19656244]
[1748872363711,0.26945184,103960.0,103950.0,1.16718568]
[1748872363925,0.12,103960.0,103950.0,1.93620568]
[1748872364221,0.12,103960.0,103950.0,1.68718244]
[1748872364409,0.12,103960.0,103950.0,1.93620568]
[1748872364724,0.12,103960.0,103950.0,2.3187405]
[1748872364725,0.03883,103960.0,103950.0,2.3187405]
[1748872364918,0.04483,103960.0,103950.0,2.3187405]
[1748872365120,0.11967659,103970.0,103960.0,0.1922944]
[1748872365121,0.06094934,103970.0,103960.0,0.1922944]
[1748872365322,0.002,103980.0,103970.0,0.1922759]
[1748872365524,0.09605,103980.0,103970.0,1.51997914]
[1748872366026,0.09605,103980.0,103970.0,1.2709559]
[1748872366616,0.09605,103980.0,103970.0,1.51997914]
[1748872366617,0.10005,103980.0,103970.0,1.51997914]
[1748872366922,0.10005,103980.0,103970.0,1.2709559]
[1748872367419,0.02311,103980.0,103970.0,1.90271626]
[1748872368217,0.004,103980.0,103970.0,1.90371626]
[1748872368410,0.004,103980.0,103970.0,1.95241626]
[1748872368411,0.0908358,103980.0,103970.0,1.95241626]
[1748872368617,0.002,104010.0,104000.0,0.1922203]
[1748872368823,0.142,104010.0,104000.0,2.86654601]
[1748872369125,0.342,104010.0,104000.0,3.09036404]
[1748872369518,0.342,104010.0,104000.0,2.8413408]
[1748872369717,0.78622514,104010.0,104000.0,0.5101]
[1748872370029,0.83472514,104010.0,104000.0,1.76382]
[1748872370327,0.88322514,104010.0,104000.0,1.76402]
[1748872370925,0.88522514,104010.0,104000.0,1.78209105]
[1748872371423,0.1922204,104000.0,103990.0,0.00014371]